[Event "Titled Tuesday Blitz June 13 Early 2023"]
[White "Al Mukhaini, Shima"]
[Black "Winkels, Marcel"]
[WhiteFideId "22005854"]
[BlackFideId "1003887"]
[WhiteElo "2258"]
[BlackElo "1900"]
[Result "1-0"]
[Round "10"]
[TimeControl "180+2"]
[Date "2023.06.13"]
[WhiteClock "0:00:22"]
[BlackClock "0:00:19"]
[Board "151"]

1. b3 {[%clk 0:02:52]}  c5 {[%clk 0:02:58]} 2. Bb2 {[%clk 0:02:49]}  Nc6 {[%clk 0:02:58]} 3. e3 {[%clk 0:02:43]}  d5 {[%clk 0:02:57]} 4. f4 {[%clk 0:02:40]}  Nf6 {[%clk 0:02:55]} 5. Nf3 {[%clk 0:02:36]}  Bg4 {[%clk 0:02:54]} 6. Bb5 {[%clk 0:02:33]}  Bxf3 {[%clk 0:02:53]} 7. Bxc6+ {[%clk 0:02:28]}  bxc6 {[%clk 0:02:53]} 8. Qxf3 {[%clk 0:02:26]}  e6 {[%clk 0:02:52]} 9. d3 {[%clk 0:02:21]}  Be7 {[%clk 0:02:50]} 10. Nd2 {[%clk 0:02:19]}  Qa5 {[%clk 0:02:47]} 11. Qe2 {[%clk 0:02:06]}  O-O {[%clk 0:02:36]} 12. O-O {[%clk 0:02:01]}  Rab8 {[%clk 0:02:30]} 13. e4 {[%clk 0:01:55]}  d4 {[%clk 0:02:27]} 14. Nc4 {[%clk 0:01:42]}  Qc7 {[%clk 0:02:26]} 15. a4 {[%clk 0:01:39]}  Nd7 {[%clk 0:02:25]} 16. Bc1 {[%clk 0:01:28]}  f6 {[%clk 0:02:22]} 17. Qg4 {[%clk 0:01:15]}  f5 {[%clk 0:02:13]} 18. Qh3 {[%clk 0:01:04]}  Nf6 {[%clk 0:02:06]} 19. exf5 {[%clk 0:00:50]}  exf5 {[%clk 0:02:05]} 20. Qxf5 {[%clk 0:00:50]}  Nd5 {[%clk 0:02:01]} 21. Qe5 {[%clk 0:00:43]}  Qd7 {[%clk 0:01:55]} 22. Bd2 {[%clk 0:00:35]}  Rbe8 {[%clk 0:01:49]} 23. Qh5 {[%clk 0:00:27]}  Rf5 {[%clk 0:01:41]} 24. Qh3 {[%clk 0:00:26]}  Qc8 {[%clk 0:01:14]} 25. Rae1 {[%clk 0:00:25]}  Ref8 {[%clk 0:01:12]} 26. g3 {[%clk 0:00:23]}  Nb6 {[%clk 0:01:07]} 27. Nxb6 {[%clk 0:00:17]}  axb6 {[%clk 0:00:55]} 28. Rxe7 {[%clk 0:00:17]}  b5 {[%clk 0:00:53]} 29. Qg4 {[%clk 0:00:17]}  g6 {[%clk 0:00:51]} 30. Rfe1 {[%clk 0:00:17]}  c4 {[%clk 0:00:50]} 31. axb5 {[%clk 0:00:16]}  cxb5 {[%clk 0:00:49]} 32. bxc4 {[%clk 0:00:16]}  bxc4 {[%clk 0:00:49]} 33. Qh4 {[%clk 0:00:14]}  Rh5 {[%clk 0:00:43]} 34. Qxh5 {[%clk 0:00:08]}  gxh5 {[%clk 0:00:42]} 35. Bb4 {[%clk 0:00:07]}  cxd3 {[%clk 0:00:40]} 36. cxd3 {[%clk 0:00:08]}  Rd8 {[%clk 0:00:37]} 37. R7e5 {[%clk 0:00:06]}  Qg4 {[%clk 0:00:36]} 38. Rg5+ {[%clk 0:00:06]}  Qxg5 {[%clk 0:00:35]} 39. fxg5 {[%clk 0:00:07]}  Rb8 {[%clk 0:00:35]} 40. Bc5 {[%clk 0:00:06]}  Rd8 {[%clk 0:00:32]} 41. Bb6 {[%clk 0:00:05]}  Rd5 {[%clk 0:00:32]} 42. Re7 {[%clk 0:00:05]}  Rxg5 {[%clk 0:00:31]} 43. Bxd4 {[%clk 0:00:05]}  h4 {[%clk 0:00:30]} 44. Rg7+ {[%clk 0:00:05]}  Rxg7 {[%clk 0:00:30]} 45. Bxg7 {[%clk 0:00:06]}  Kxg7 {[%clk 0:00:29]} 46. gxh4 {[%clk 0:00:06]}  Kf6 {[%clk 0:00:30]} 47. Kf2 {[%clk 0:00:07]}  Ke5 {[%clk 0:00:30]} 48. Ke3 {[%clk 0:00:08]}  Kd5 {[%clk 0:00:31]} 49. d4 {[%clk 0:00:08]}  h6 {[%clk 0:00:28]} 50. Kd3 {[%clk 0:00:08]}  h5 {[%clk 0:00:28]} 51. Ke3 {[%clk 0:00:08]}  Kd6 {[%clk 0:00:27]} 52. Ke4 {[%clk 0:00:09]}  Ke6 {[%clk 0:00:27]} 53. d5+ {[%clk 0:00:10]}  Kd6 {[%clk 0:00:27]} 54. Kd4 {[%clk 0:00:10]}  Kd7 {[%clk 0:00:27]} 55. Ke5 {[%clk 0:00:11]}  Ke7 {[%clk 0:00:27]} 56. d6+ {[%clk 0:00:12]}  Kd7 {[%clk 0:00:27]} 57. Kd5 {[%clk 0:00:12]}  Kd8 {[%clk 0:00:27]} 58. Ke6 {[%clk 0:00:13]}  Ke8 {[%clk 0:00:27]} 59. d7+ {[%clk 0:00:13]}  Kd8 {[%clk 0:00:26]} 60. h3 {[%clk 0:00:13]}  Kc7 {[%clk 0:00:16]} 61. Ke7 {[%clk 0:00:14]}  Kc6 {[%clk 0:00:16]} 62. d8=Q {[%clk 0:00:15]}  Kc5 {[%clk 0:00:16]} 63. Qh8 {[%clk 0:00:15]}  Kc4 {[%clk 0:00:17]} 64. Qxh5 {[%clk 0:00:16]}  Kd4 {[%clk 0:00:17]} 65. Qg5 {[%clk 0:00:17]}  Ke4 {[%clk 0:00:17]} 66. h5 {[%clk 0:00:18]}  Kf3 {[%clk 0:00:18]} 67. h6 {[%clk 0:00:19]}  Kf2 {[%clk 0:00:18]} 68. h7 {[%clk 0:00:20]}  Kf3 {[%clk 0:00:18]} 69. h8=Q {[%clk 0:00:18]}  Ke4 {[%clk 0:00:19]} 70. Qf8 {[%clk 0:00:19]}  Kd4 {[%clk 0:00:18]} 71. Qff4+ {[%clk 0:00:20]}  Kd3 {[%clk 0:00:19]} 72. Qgg3+ {[%clk 0:00:20]}  Ke2 {[%clk 0:00:19]} 73. Qff2+ {[%clk 0:00:21]}  Kd1 {[%clk 0:00:19]} 74. Qgg1# {[%clk 0:00:22]} 1-0


[Site "https://www.chess.com"]

[Event "Titled Tuesday Blitz June 13 Early 2023"]
[White "Lisjak, Zlatko"]
[Black "rionelG"]
[WhiteFideId "14502186"]
[WhiteElo "1998"]
[BlackElo "2220"]
[Result "0-1"]
[Round "10"]
[TimeControl "180+2"]
[Date "2023.06.13"]
[WhiteClock "0:00:00"]
[BlackClock "0:00:18"]
[Board "152"]

1. e4 {[%clk 0:03:00]}  c5 {[%clk 0:02:59]} 2. b4 {[%clk 0:02:59]}  cxb4 {[%clk 0:02:58]} 3. Bb2 {[%clk 0:03:00]}  d5 {[%clk 0:02:58]} 4. exd5 {[%clk 0:02:58]}  Nf6 {[%clk 0:02:58]} 5. d4 {[%clk 0:02:58]}  Nxd5 {[%clk 0:02:57]} 6. a3 {[%clk 0:02:57]}  e6 {[%clk 0:02:52]} 7. Nf3 {[%clk 0:02:51]}  Nc6 {[%clk 0:02:50]} 8. axb4 {[%clk 0:02:48]}  Bxb4+ {[%clk 0:02:49]} 9. c3 {[%clk 0:02:48]}  Ba5 {[%clk 0:02:49]} 10. Bd3 {[%clk 0:02:48]}  Nf4 {[%clk 0:02:41]} 11. O-O {[%clk 0:02:38]}  Nxd3 {[%clk 0:02:28]} 12. Qxd3 {[%clk 0:02:37]}  O-O {[%clk 0:02:28]} 13. c4 {[%clk 0:02:37]}  Bc7 {[%clk 0:02:24]} 14. d5 {[%clk 0:02:26]}  exd5 {[%clk 0:02:01]} 15. cxd5 {[%clk 0:02:25]}  Ne7 {[%clk 0:01:52]} 16. Rd1 {[%clk 0:02:10]}  Bd6 {[%clk 0:01:51]} 17. Nc3 {[%clk 0:02:04]}  Bf5 {[%clk 0:01:45]} 18. Qd4 {[%clk 0:02:01]}  Bg6 {[%clk 0:01:44]} 19. Nb5 {[%clk 0:01:55]}  Nf5 {[%clk 0:01:44]} 20. Qg4 {[%clk 0:01:46]}  h5 {[%clk 0:01:41]} 21. Qa4 {[%clk 0:01:39]}  a6 {[%clk 0:01:22]} 22. Nxd6 {[%clk 0:01:26]}  Nxd6 {[%clk 0:01:23]} 23. Qb3 {[%clk 0:01:22]}  b5 {[%clk 0:01:15]} 24. Nd4 {[%clk 0:01:20]}  Qg5 {[%clk 0:01:10]} 25. Bc1 {[%clk 0:01:09]}  Qf6 {[%clk 0:01:00]} 26. Be3 {[%clk 0:00:58]}  Nc4 {[%clk 0:00:59]} 27. Nc6 {[%clk 0:00:48]}  Nxe3 {[%clk 0:00:49]} 28. Qxe3 {[%clk 0:00:44]}  Qd6 {[%clk 0:00:49]} 29. Qd4 {[%clk 0:00:33]}  Rfe8 {[%clk 0:00:48]} 30. f3 {[%clk 0:00:31]}  Re2 {[%clk 0:00:36]} 31. Re1 {[%clk 0:00:21]}  Rae8 {[%clk 0:00:34]} 32. Rxe2 {[%clk 0:00:20]}  Rxe2 {[%clk 0:00:35]} 33. Rd1 {[%clk 0:00:17]}  Bc2 {[%clk 0:00:22]} 34. Rc1 {[%clk 0:00:15]}  a5 {[%clk 0:00:20]} 35. Qc3 {[%clk 0:00:06]}  b4 {[%clk 0:00:18]} 36. Qd4 {[%clk 0:00:00]}  b3 {[%clk 0:00:18]} 0-1


[Site "https://www.chess.com"]

[Event "Titled Tuesday Blitz June 13 Early 2023"]
[White "Vargas, Mauricio"]
[Black "Mirzanurov, Bulat"]
[WhiteFideId "4404572"]
[BlackFideId "4184521"]
[WhiteElo "1986"]
[BlackElo "2005"]
[Result "1-0"]
[Round "10"]
[TimeControl "180+2"]
[Date "2023.06.13"]
[WhiteClock "0:00:19"]
[BlackClock "0:00:00"]
[Board "154"]

1. f4 {[%clk 0:03:00]}  d5 {[%clk 0:02:59]} 2. Nf3 {[%clk 0:02:50]}  Nf6 {[%clk 0:02:58]} 3. d3 {[%clk 0:02:45]}  c5 {[%clk 0:02:56]} 4. e3 {[%clk 0:02:44]}  g6 {[%clk 0:02:55]} 5. h3 {[%clk 0:02:42]}  Bg7 {[%clk 0:02:56]} 6. g4 {[%clk 0:02:42]}  Nc6 {[%clk 0:02:54]} 7. Bg2 {[%clk 0:02:42]}  h5 {[%clk 0:02:50]} 8. g5 {[%clk 0:02:41]}  Nd7 {[%clk 0:02:49]} 9. O-O {[%clk 0:02:41]}  e6 {[%clk 0:02:47]} 10. Nc3 {[%clk 0:02:33]}  Nb6 {[%clk 0:02:44]} 11. a4 {[%clk 0:02:31]}  Bd7 {[%clk 0:02:36]} 12. Bd2 {[%clk 0:02:29]}  Qe7 {[%clk 0:02:27]} 13. a5 {[%clk 0:02:26]}  Nc8 {[%clk 0:02:26]} 14. Nb5 {[%clk 0:02:22]}  Qd8 {[%clk 0:02:24]} 15. Qe1 {[%clk 0:02:15]}  a6 {[%clk 0:02:21]} 16. Nc3 {[%clk 0:01:59]}  Nd6 {[%clk 0:02:03]} 17. e4 {[%clk 0:01:44]}  dxe4 {[%clk 0:01:39]} 18. dxe4 {[%clk 0:01:42]}  O-O {[%clk 0:01:38]} 19. Na4 {[%clk 0:01:36]}  Nd4 {[%clk 0:00:53]} 20. Nxd4 {[%clk 0:01:15]}  Bxd4+ {[%clk 0:00:51]} 21. Kh1 {[%clk 0:01:14]}  Bxa4 {[%clk 0:00:48]} 22. Rxa4 {[%clk 0:01:11]}  Bxb2 {[%clk 0:00:47]} 23. e5 {[%clk 0:01:06]}  Nf5 {[%clk 0:00:45]} 24. Kh2 {[%clk 0:01:06]}  Qd7 {[%clk 0:00:10]} 25. Ra2 {[%clk 0:01:05]}  Qb5 {[%clk 0:00:04]} 26. c3 {[%clk 0:00:47]}  Qb3 {[%clk 0:00:03]} 27. Qb1 {[%clk 0:00:22]}  c4 {[%clk 0:00:00]} 28. Rxb2 {[%clk 0:00:19]} 1-0


[Site "https://www.chess.com"]

[Event "Titled Tuesday Blitz June 13 Early 2023"]
[White "Avazkhonov, Alikhon"]
[Black "Clawitter, Craig"]
[WhiteFideId "14208504"]
[BlackFideId "2023105"]
[WhiteElo "1739"]
[BlackElo "2219"]
[Result "1-0"]
[Round "10"]
[TimeControl "180+2"]
[Date "2023.06.13"]
[WhiteClock "0:00:20"]
[BlackClock "0:00:05"]
[Board "156"]

1. d4 {[%clk 0:02:52]}  e6 {[%clk 0:02:21]} 2. e4 {[%clk 0:02:48]}  d5 {[%clk 0:02:21]} 3. Nd2 {[%clk 0:02:48]}  Be7 {[%clk 0:02:20]} 4. Ngf3 {[%clk 0:02:48]}  Nf6 {[%clk 0:02:19]} 5. e5 {[%clk 0:02:48]}  Nfd7 {[%clk 0:02:20]} 6. Bd3 {[%clk 0:02:49]}  c5 {[%clk 0:02:21]} 7. c3 {[%clk 0:02:49]}  Nc6 {[%clk 0:02:21]} 8. O-O {[%clk 0:02:48]}  a5 {[%clk 0:02:22]} 9. b3 {[%clk 0:02:48]}  cxd4 {[%clk 0:02:20]} 10. cxd4 {[%clk 0:02:39]}  g5 {[%clk 0:02:20]} 11. Bb2 {[%clk 0:02:38]}  a4 {[%clk 0:02:18]} 12. bxa4 {[%clk 0:02:36]}  g4 {[%clk 0:02:16]} 13. Ne1 {[%clk 0:02:33]}  Qb6 {[%clk 0:02:15]} 14. Bb5 {[%clk 0:02:31]}  Nxd4 {[%clk 0:02:03]} 15. Nc4 {[%clk 0:02:31]}  dxc4 {[%clk 0:01:58]} 16. Bxd4 {[%clk 0:02:32]}  Bc5 {[%clk 0:01:50]} 17. Bxc5 {[%clk 0:02:05]}  Qxc5 {[%clk 0:01:51]} 18. Qxg4 {[%clk 0:02:06]}  Qxe5 {[%clk 0:01:39]} 19. Rd1 {[%clk 0:02:06]}  Ke7 {[%clk 0:01:35]} 20. Nf3 {[%clk 0:02:05]}  Qf6 {[%clk 0:01:10]} 21. Qxc4 {[%clk 0:01:50]}  Rg8 {[%clk 0:01:07]} 22. Rd3 {[%clk 0:01:14]}  Kf8 {[%clk 0:00:52]} 23. Bxd7 {[%clk 0:00:53]}  Bxd7 {[%clk 0:00:52]} 24. Qb4+ {[%clk 0:00:54]}  Ke8 {[%clk 0:00:47]} 25. Qxb7 {[%clk 0:00:53]}  Rd8 {[%clk 0:00:41]} 26. Rfd1 {[%clk 0:00:53]}  Qg6 {[%clk 0:00:25]} 27. Ne5 {[%clk 0:00:51]}  Qg5 {[%clk 0:00:18]} 28. Rg3 {[%clk 0:00:37]}  Qxe5 {[%clk 0:00:09]} 29. Rxg8+ {[%clk 0:00:37]}  Ke7 {[%clk 0:00:07]} 30. Qb4+ {[%clk 0:00:37]}  Kf6 {[%clk 0:00:07]} 31. Qh4+ {[%clk 0:00:38]}  Kf5 {[%clk 0:00:06]} 32. Qg5+ {[%clk 0:00:23]}  Ke4 {[%clk 0:00:05]} 33. f3# {[%clk 0:00:20]} 1-0


[Site "https://www.chess.com"]

[Event "Titled Tuesday Blitz June 13 Early 2023"]
[White "Alexanian, Nelli"]
[Black "Omariev, Maksim"]
[WhiteFideId "4170539"]
[BlackFideId "4193423"]
[WhiteElo "2019"]
[BlackElo "2341"]
[Result "0-1"]
[Round "10"]
[TimeControl "180+2"]
[Date "2023.06.13"]
[WhiteClock "0:01:07"]
[BlackClock "0:01:31"]
[Board "158"]

1. d4 {[%clk 0:02:54]}  h5 {[%clk 0:02:55]} 2. e4 {[%clk 0:02:52]}  h4 {[%clk 0:02:56]} 3. c4 {[%clk 0:02:49]}  d6 {[%clk 0:02:56]} 4. Nc3 {[%clk 0:02:48]}  h3 {[%clk 0:02:57]} 5. gxh3 {[%clk 0:02:43]}  e5 {[%clk 0:02:56]} 6. dxe5 {[%clk 0:02:37]}  dxe5 {[%clk 0:02:57]} 7. Qxd8+ {[%clk 0:02:36]}  Kxd8 {[%clk 0:02:58]} 8. Nf3 {[%clk 0:02:31]}  f6 {[%clk 0:02:58]} 9. h4 {[%clk 0:02:27]}  c6 {[%clk 0:02:57]} 10. Be3 {[%clk 0:02:23]}  Kc7 {[%clk 0:02:55]} 11. Be2 {[%clk 0:02:17]}  Na6 {[%clk 0:02:54]} 12. O-O-O {[%clk 0:02:16]}  Be6 {[%clk 0:02:51]} 13. b3 {[%clk 0:02:03]}  Ne7 {[%clk 0:02:50]} 14. Kc2 {[%clk 0:02:02]}  Ng6 {[%clk 0:02:47]} 15. h5 {[%clk 0:02:00]}  Ne7 {[%clk 0:02:17]} 16. Nh4 {[%clk 0:01:57]}  Bf7 {[%clk 0:02:15]} 17. f4 {[%clk 0:01:51]}  Bxh5 {[%clk 0:02:12]} 18. Nf3 {[%clk 0:01:49]}  Ng6 {[%clk 0:01:56]} 19. f5 {[%clk 0:01:45]}  Bxf3 {[%clk 0:01:49]} 20. Bxf3 {[%clk 0:01:45]}  Nh4 {[%clk 0:01:47]} 21. Be2 {[%clk 0:01:39]}  Ng2 {[%clk 0:01:46]} 22. Bc1 {[%clk 0:01:36]}  Bc5 {[%clk 0:01:42]} 23. Kb2 {[%clk 0:01:33]}  Bd4 {[%clk 0:01:38]} 24. a3 {[%clk 0:01:30]}  Nc5 {[%clk 0:01:37]} 25. Bf3 {[%clk 0:01:28]}  Nh4 {[%clk 0:01:36]} 26. b4 {[%clk 0:01:07]}  Na4+ {[%clk 0:01:31]} 0-1


[Site "https://www.chess.com"]

[Event "Titled Tuesday Blitz June 13 Early 2023"]
[White "Paravyan, David"]
[Black "Caruana, Fabiano"]
[WhiteFideId "4194985"]
[BlackFideId "2020009"]
[WhiteElo "2563"]
[BlackElo "2832"]
[Result "1/2-1/2"]
[Round "11"]
[TimeControl "180+2"]
[Date "2023.06.13"]
[WhiteClock "0:00:08"]
[BlackClock "0:00:12"]
[Board "1"]

1. e4 {[%clk 0:03:00]}  c5 {[%clk 0:03:00]} 2. Nf3 {[%clk 0:03:00]}  d6 {[%clk 0:03:00]} 3. d4 {[%clk 0:03:01]}  cxd4 {[%clk 0:03:00]} 4. Nxd4 {[%clk 0:03:02]}  Nf6 {[%clk 0:03:01]} 5. Nc3 {[%clk 0:03:02]}  a6 {[%clk 0:03:01]} 6. Bd3 {[%clk 0:03:02]}  g6 {[%clk 0:02:58]} 7. f3 {[%clk 0:03:02]}  e5 {[%clk 0:02:58]} 8. Nb3 {[%clk 0:02:56]}  Be6 {[%clk 0:02:58]} 9. Be3 {[%clk 0:02:55]}  Nbd7 {[%clk 0:02:58]} 10. Qd2 {[%clk 0:02:55]}  Qc7 {[%clk 0:02:58]} 11. O-O {[%clk 0:02:27]}  h5 {[%clk 0:02:52]} 12. Rad1 {[%clk 0:02:27]}  Be7 {[%clk 0:02:51]} 13. h3 {[%clk 0:02:18]}  h4 {[%clk 0:02:51]} 14. f4 {[%clk 0:02:19]}  exf4 {[%clk 0:02:46]} 15. Bxf4 {[%clk 0:02:19]}  Nh5 {[%clk 0:02:43]} 16. Bg5 {[%clk 0:01:49]}  Ng3 {[%clk 0:02:24]} 17. Rf2 {[%clk 0:01:41]}  Ne5 {[%clk 0:02:19]} 18. Nd4 {[%clk 0:01:34]}  O-O-O {[%clk 0:01:58]} 19. Nce2 {[%clk 0:01:04]}  Bxg5 {[%clk 0:01:41]} 20. Qxg5 {[%clk 0:01:04]}  Kb8 {[%clk 0:01:39]} 21. Nxg3 {[%clk 0:00:53]}  hxg3 {[%clk 0:01:37]} 22. Qxg3 {[%clk 0:00:54]}  Bc8 {[%clk 0:01:32]} 23. Nf3 {[%clk 0:00:53]}  Rde8 {[%clk 0:01:24]} 24. Rdf1 {[%clk 0:00:45]}  Qb6 {[%clk 0:01:21]} 25. Nxe5 {[%clk 0:00:31]}  Rxe5 {[%clk 0:01:21]} 26. Kh2 {[%clk 0:00:24]}  Be6 {[%clk 0:01:20]} 27. b3 {[%clk 0:00:22]}  Rc8 {[%clk 0:00:48]} 28. Rf6 {[%clk 0:00:18]}  Qd4 {[%clk 0:00:39]} 29. R1f3 {[%clk 0:00:17]}  g5 {[%clk 0:00:33]} 30. Bc4 {[%clk 0:00:14]}  Bxc4 {[%clk 0:00:22]} 31. bxc4 {[%clk 0:00:15]}  Qxc4 {[%clk 0:00:21]} 32. Rxd6 {[%clk 0:00:14]}  Qxe4 {[%clk 0:00:08]} 33. Rxf7 {[%clk 0:00:14]}  Ka7 {[%clk 0:00:08]} 34. Rdd7 {[%clk 0:00:10]}  Rb5 {[%clk 0:00:08]} 35. Qf2+ {[%clk 0:00:08]}  Ka8 {[%clk 0:00:08]} 36. a4 {[%clk 0:00:04]}  Rb2 {[%clk 0:00:07]} 37. Rd2 {[%clk 0:00:02]}  Qe5+ {[%clk 0:00:07]} 38. Qg3 {[%clk 0:00:02]}  Qa5 {[%clk 0:00:06]} 39. Rff2 {[%clk 0:00:02]}  Qc5 {[%clk 0:00:04]} 40. Qg4 {[%clk 0:00:02]}  Rb4 {[%clk 0:00:03]} 41. Qf5 {[%clk 0:00:02]}  Qc7+ {[%clk 0:00:04]} 42. Kg1 {[%clk 0:00:02]}  g4 {[%clk 0:00:04]} 43. hxg4 {[%clk 0:00:02]}  Rxa4 {[%clk 0:00:05]} 44. Rf3 {[%clk 0:00:02]}  Ra1+ {[%clk 0:00:04]} 45. Rf1 {[%clk 0:00:03]}  Ra4 {[%clk 0:00:03]} 46. g5 {[%clk 0:00:02]}  Rc4 {[%clk 0:00:04]} 47. Qf2 {[%clk 0:00:02]}  Rc5 {[%clk 0:00:04]} 48. Qf4 {[%clk 0:00:02]}  Qb6 {[%clk 0:00:04]} 49. Qd4 {[%clk 0:00:02]}  Qc6 {[%clk 0:00:04]} 50. Rf6 {[%clk 0:00:02]}  Qc7 {[%clk 0:00:04]} 51. Rdf2 {[%clk 0:00:02]}  Rxg5 {[%clk 0:00:04]} 52. Rf8 {[%clk 0:00:02]}  Rg8 {[%clk 0:00:04]} 53. Rxg8 {[%clk 0:00:02]}  Rxg8 {[%clk 0:00:05]} 54. c4 {[%clk 0:00:03]}  Qc6 {[%clk 0:00:05]} 55. c5 {[%clk 0:00:02]}  Rc8 {[%clk 0:00:05]} 56. Rf5 {[%clk 0:00:02]}  Qc7 {[%clk 0:00:06]} 57. Rd5 {[%clk 0:00:02]}  Rg8 {[%clk 0:00:06]} 58. Rd6 {[%clk 0:00:02]}  Re8 {[%clk 0:00:04]} 59. Qd5 {[%clk 0:00:02]}  Rc8 {[%clk 0:00:04]} 60. Rxa6+ {[%clk 0:00:02]}  Kb8 {[%clk 0:00:04]} 61. Rd6 {[%clk 0:00:02]}  Qxc5+ {[%clk 0:00:04]} 62. Qxc5 {[%clk 0:00:03]}  Rxc5 {[%clk 0:00:05]} 63. Kf2 {[%clk 0:00:04]}  Kc7 {[%clk 0:00:05]} 64. Rg6 {[%clk 0:00:03]}  b5 {[%clk 0:00:06]} 65. Ke3 {[%clk 0:00:04]}  b4 {[%clk 0:00:06]} 66. Rg4 {[%clk 0:00:04]}  Rb5 {[%clk 0:00:07]} 67. Kd2 {[%clk 0:00:05]}  b3 {[%clk 0:00:07]} 68. Kc1 {[%clk 0:00:05]}  Kd6 {[%clk 0:00:07]} 69. Kb2 {[%clk 0:00:05]}  Ke6 {[%clk 0:00:08]} 70. Rh4 {[%clk 0:00:05]}  Kf6 {[%clk 0:00:08]} 71. Rh3 {[%clk 0:00:05]}  Kg6 {[%clk 0:00:08]} 72. Rxb3 {[%clk 0:00:05]}  Rxb3+ {[%clk 0:00:09]} 73. Kxb3 {[%clk 0:00:06]}  Kg5 {[%clk 0:00:09]} 74. Kc2 {[%clk 0:00:06]}  Kg4 {[%clk 0:00:10]} 75. Kd2 {[%clk 0:00:07]}  Kg3 {[%clk 0:00:11]} 76. Ke2 {[%clk 0:00:08]}  Kxg2 {[%clk 0:00:12]} 1/2-1/2


[Site "https://www.chess.com"]

[Event "Titled Tuesday Blitz June 13 Early 2023"]
[White "Andreikin, Dmitry"]
[Black "Arutinian, David"]
[WhiteFideId "4158814"]
[BlackFideId "13601741"]
[WhiteElo "2736"]
[BlackElo "2525"]
[Result "1-0"]
[Round "11"]
[TimeControl "180+2"]
[Date "2023.06.13"]
[WhiteClock "0:00:17"]
[BlackClock "0:00:15"]
[Board "7"]

1. d4 {[%clk 0:03:00]}  Nf6 {[%clk 0:02:55]} 2. c4 {[%clk 0:03:01]}  e6 {[%clk 0:02:55]} 3. Nf3 {[%clk 0:03:00]}  d5 {[%clk 0:02:54]} 4. Bg5 {[%clk 0:03:01]}  h6 {[%clk 0:02:52]} 5. Bxf6 {[%clk 0:03:00]}  Qxf6 {[%clk 0:02:53]} 6. e3 {[%clk 0:03:01]}  Bb4+ {[%clk 0:02:50]} 7. Nbd2 {[%clk 0:02:59]}  O-O {[%clk 0:02:50]} 8. Rc1 {[%clk 0:02:58]}  c6 {[%clk 0:02:41]} 9. Bd3 {[%clk 0:02:56]}  Nd7 {[%clk 0:02:41]} 10. O-O {[%clk 0:02:56]}  Bxd2 {[%clk 0:02:41]} 11. Nxd2 {[%clk 0:02:43]}  dxc4 {[%clk 0:02:39]} 12. Ne4 {[%clk 0:02:32]}  Qe7 {[%clk 0:02:37]} 13. Bxc4 {[%clk 0:02:32]}  b6 {[%clk 0:02:28]} 14. Qe2 {[%clk 0:02:24]}  a6 {[%clk 0:02:21]} 15. f4 {[%clk 0:02:12]}  Bb7 {[%clk 0:02:20]} 16. Ng3 {[%clk 0:02:12]}  c5 {[%clk 0:02:17]} 17. f5 {[%clk 0:02:10]}  b5 {[%clk 0:01:57]} 18. Bd3 {[%clk 0:01:53]}  cxd4 {[%clk 0:01:34]} 19. Rc7 {[%clk 0:01:52]}  Bd5 {[%clk 0:01:29]} 20. f6 {[%clk 0:01:41]}  Qd6 {[%clk 0:01:25]} 21. Rxd7 {[%clk 0:01:29]}  Qxd7 {[%clk 0:01:22]} 22. Qg4 {[%clk 0:01:05]}  g6 {[%clk 0:01:15]} 23. Bxg6 {[%clk 0:00:45]}  fxg6 {[%clk 0:01:14]} 24. Qxg6+ {[%clk 0:00:44]}  Kh8 {[%clk 0:01:14]} 25. f7 {[%clk 0:00:45]}  Rxf7 {[%clk 0:00:25]} 26. Rxf7 {[%clk 0:00:44]}  Qxf7 {[%clk 0:00:26]} 27. Qxf7 {[%clk 0:00:44]}  dxe3 {[%clk 0:00:27]} 28. Qf6+ {[%clk 0:00:33]}  Kh7 {[%clk 0:00:27]} 29. Qf7+ {[%clk 0:00:31]}  Kh8 {[%clk 0:00:26]} 30. Qg6 {[%clk 0:00:31]}  Ra7 {[%clk 0:00:26]} 31. Qxh6+ {[%clk 0:00:30]}  Kg8 {[%clk 0:00:26]} 32. Qxe3 {[%clk 0:00:29]}  Rg7 {[%clk 0:00:26]} 33. h3 {[%clk 0:00:24]}  Bxa2 {[%clk 0:00:26]} 34. Kh2 {[%clk 0:00:24]}  Bd5 {[%clk 0:00:26]} 35. Qb6 {[%clk 0:00:24]}  Rf7 {[%clk 0:00:24]} 36. Nh5 {[%clk 0:00:20]}  Kh7 {[%clk 0:00:24]} 37. g4 {[%clk 0:00:19]}  Kg6 {[%clk 0:00:19]} 38. Kg3 {[%clk 0:00:18]}  Kg5 {[%clk 0:00:20]} 39. Qd8+ {[%clk 0:00:17]}  Kg6 {[%clk 0:00:15]} 40. Qg8+ {[%clk 0:00:17]} 1-0


[Site "https://www.chess.com"]